fUSD/lending_fUSD_20250115
["ID","MTS","AMOUNT","RATE_DAILY","PERIOD"]
[348986941,1736917832924,-117.43685708,9.999e-05,2]
[348986946,1736917837938,-382.56314292,9.999e-05,2]
[348986947,1736917837948,-10.44868036,9.999e-05,2]
[348986948,1736917837992,-489.55131964,9.999e-05,2]
[348986949,1736917838003,-500.0,9.999e-05,2]
[348986950,1736917838013,-500.0,9.999e-05,2]
[348986951,1736917838023,-500.0,9.999e-05,2]
[348986952,1736917838032,-500.0,9.999e-05,2]
[348986953,1736917838042,-500.0,9.999e-05,2]
[348986954,1736917838051,-500.0,9.999e-05,2]
[348986955,1736917838061,-28.72034808,9.999e-05,2]
[348986956,1736917838073,-472.76273071,9.999e-05,2]
[348986957,1736917838083,-502.08894959,9.999e-05,2]
[348986958,1736917838092,-500.0,9.999e-05,2]
[348986959,1736917838102,-114.22361655,9.999e-05,2]
[348986960,1736917838116,-69.95592753,9.999e-05,2]
[348986961,1736917838126,-500.0,9.999e-05,2]
[348986962,1736917838136,-500.0,9.999e-05,2]
[348986963,1736917838145,-504.59988799,9.999e-05,2]
[348986964,1736917838155,-500.0,9.999e-05,2]
[348986965,1736917838165,-472.40777231,9.999e-05,2]
[348986966,1736917838176,-28.17899581,9.999e-05,2]
[348986967,1736917838187,-501.86378828,9.999e-05,2]
[348986968,1736917838196,-205.1108711,9.999e-05,2]
[348986969,1736917838207,-296.97456678,9.999e-05,2]
[348986970,1736917838217,-64.39668354,9.999e-05,2]
[348986971,1736917838228,-435.60331646,9.999e-05,2]
[348986972,1736917838237,-500.0,9.999e-05,2]
[348986973,1736917838246,-500.0,9.999e-05,2]
[348986974,1736917838255,-500.0,9.999e-05,2]
[348986975,1736917838264,-503.81220619,9.999e-05,2]
[348986976,1736917838273,-158.19948095,9.999e-05,2]
[348986979,1736917838285,-341.80051905,9.999e-05,2]
[348986981,1736917838295,-500.0,9.999e-05,2]
[348986983,1736917838304,-433.12414667,9.999e-05,2]
[348986985,1736917838316,-66.87585333,9.999e-05,2]
[348986987,1736917838325,-398.52518967,9.999e-05,2]
[348987018,1736917839983,-101.47481033,9.999e-05,2]
[348987019,1736917839993,-500.0,9.999e-05,2]
[348987020,1736917840003,-616.15,9.999e-05,2]
[348987021,1736917840012,-54.95318957,9.999e-05,2]
[348987022,1736917840023,-445.04681043,9.999e-05,2]
[348987023,1736917840033,-500.0,9.999e-05,2]
[348987024,1736917840042,-500.0,9.999e-05,2]
[348987025,1736917840051,-648.31,9.999e-05,2]
[348987026,1736917840060,-500.0,9.999e-05,2]
[348987027,1736917840070,-500.0,9.999e-05,2]
[348987028,1736917840079,-500.0,9.999e-05,2]
[348987029,1736917840089,-500.0,9.999e-05,2]
[348987030,1736917840099,-500.0,9.999e-05,2]
[348987031,1736917840108,-500.0,9.999e-05,2]
[348987032,1736917840117,-500.0,9.999e-05,2]
[348987033,1736917840126,-500.0,9.999e-05,2]
[348987034,1736917840135,-883.61,9.999e-05,2]
[348987035,1736917840144,-500.0,9.999e-05,2]
[348987036,1736917840153,-500.0,9.999e-05,2]
[348987037,1736917840162,-500.0,9.999e-05,2]
[348987038,1736917840171,-500.0,9.999e-05,2]
[348987039,1736917840180,-500.0,9.999e-05,2]
[348987040,1736917840189,-500.0,9.999e-05,2]
[348987041,1736917840199,-500.0,9.999e-05,2]
[348987042,1736917840208,-500.0,9.999e-05,2]
[348987043,1736917840218,-441.82928659,9.999e-05,2]
[348987044,1736917840227,-500.0,9.999e-05,2]
[348987045,1736917840237,-500.0,9.999e-05,2]
[348987046,1736917840246,-619.3,9.999e-05,2]
[348987047,1736917840255,-500.0,9.999e-05,2]
[348987048,1736917840265,-168.84,9.999e-05,2]
[348987049,1736917840274,-500.0,9.999e-05,2]
[348987050,1736917840283,-500.0,9.999e-05,2]
[348987051,1736917840292,-500.0,9.999e-05,2]
[348987052,1736917840302,-500.0,9.999e-05,2]
[348987053,1736917840312,-502.64076456,9.999e-05,2]
[348987054,1736917840321,-500.0,9.999e-05,2]
[348987055,1736917840331,-500.0,9.999e-05,2]
[348987056,1736917840340,-223.46322213,9.999e-05,2]
[348987057,1736917840350,-158.24325852,9.999e-05,2]
[348987058,1736917840362,-500.0,9.999e-05,2]
[348987059,1736917840371,-500.0,9.999e-05,2]
[348987061,1736917840381,-500.0,9.999e-05,2]
[348987063,1736917840391,-500.0,9.999e-05,2]
[348987065,1736917840400,-507.34625254,9.999e-05,2]
[348987067,1736917840410,-500.0,9.999e-05,2]
[348987068,1736917840419,-500.0,9.999e-05,2]
[348987069,1736917840430,-500.0,9.999e-05,2]
[348987070,1736917840440,-500.0,9.999e-05,2]
[348987071,1736917840451,-500.0,9.999e-05,2]
[348987072,1736917840461,-500.0,9.999e-05,2]
[348987073,1736917840471,-157.87040523,9.999e-05,2]
[348987074,1736917840483,-342.12959477,9.999e-05,2]
[348987075,1736917840494,-332.33,9.999e-05,2]
[348987076,1736917840506,-500.0,9.999e-05,2]
[348987077,1736917840516,-187.93044523,9.999e-05,2]
[348987078,1736917840527,-278.02907776,9.999e-05,2]
[348987079,1736917840536,-500.0,9.999e-05,2]
[348987080,1736917840545,-542.41956668,9.999e-05,2]
[348987081,1736917840554,-85.70135559,9.999e-05,2]
[348987082,1736917840565,-414.29864441,9.999e-05,2]
[348987084,1736917840574,-439.7461662,9.999e-05,2]
[348987086,1736917840585,-60.2538338,9.999e-05,2]
[348987087,1736917840593,-341.18831244,9.999e-05,2]
[348987088,1736917840605,-158.81168756,9.999e-05,2]
[348987089,1736917840614,-500.0,9.999e-05,2]
[348987090,1736917840623,-396.83831212,9.999e-05,2]
[348987091,1736917840639,-103.16168788,9.999e-05,2]
[348987092,1736917840648,-500.0,9.999e-05,2]
[348987093,1736917840657,-226.26203007,9.999e-05,2]
[348987094,1736917840668,-273.73796993,9.999e-05,2]
[348987095,1736917840677,-622.18,9.999e-05,2]
[348987096,1736917840686,-500.0,9.999e-05,2]
[348987097,1736917840695,-500.0,9.999e-05,2]
[348987098,1736917840704,-30.79980448,9.999e-05,2]
[348987099,1736917840715,-584.79525107,9.999e-05,2]
[348987100,1736917840725,-546.16,9.999e-05,2]
[348987101,1736917840734,-500.0,9.999e-05,2]
[348987102,1736917840743,-500.0,9.999e-05,2]
[348987103,1736917840752,-500.0,9.999e-05,2]
[348987104,1736917840761,-461.15,9.999e-05,2]
[348987105,1736917840770,-500.0,9.999e-05,2]
[348987106,1736917840779,-500.0,9.999e-05,2]
[348987107,1736917840788,-500.0,9.999e-05,2]
[348987108,1736917840798,-500.0,9.999e-05,2]
[348987109,1736917840807,-500.0,9.999e-05,2]
[348987110,1736917840816,-416.16966893,9.999e-05,2]
[348987111,1736917840827,-83.83033107,9.999e-05,2]
[348987112,1736917840837,-500.0,9.999e-05,2]
[348987113,1736917840846,-611.38,9.999e-05,2]
[348987114,1736917840856,-500.0,9.999e-05,2]
[348987115,1736917840865,-500.0,9.999e-05,2]
[348987116,1736917840874,-500.0,9.999e-05,2]
[348987117,1736917840884,-500.0,9.999e-05,2]
[348987118,1736917840893,-500.0,9.999e-05,2]
[348987119,1736917840902,-516.02208912,9.999e-05,2]
[348987120,1736917840911,-500.0,9.999e-05,2]
[348987121,1736917840920,-500.0,9.999e-05,2]
[348987122,1736917840929,-555.97,9.999e-05,2]
[348987123,1736917840938,-500.0,9.999e-05,2]
[348987124,1736917840946,-588.31,9.999e-05,2]
[348987125,1736917840955,-500.0,9.999e-05,2]
[348987126,1736917840964,-500.0,9.999e-05,2]
[348987127,1736917840974,-500.0,9.999e-05,2]
[348987128,1736917840983,-500.0,9.999e-05,2]
[348987129,1736917840993,-500.0,9.999e-05,2]
[348987130,1736917841003,-211.41,9.999e-05,2]
[348987131,1736917841012,-500.0,9.999e-05,2]
[348987132,1736917841022,-500.0,9.999e-05,2]
[348987133,1736917841031,-500.0,9.999e-05,2]
[348987134,1736917841041,-500.0,9.999e-05,2]
[348987135,1736917841051,-535.83,9.999e-05,2]
[348987136,1736917841060,-500.0,9.999e-05,2]
[348987137,1736917841070,-225.3369057,9.999e-05,2]
[348987138,1736917841079,-543.93,9.999e-05,2]
[348987139,1736917841090,-500.0,9.999e-05,2]
[348987140,1736917841099,-616.7,9.999e-05,2]
[348987141,1736917841108,-500.0,9.999e-05,2]
[348987142,1736917841118,-636.22,9.999e-05,2]
[348987143,1736917841126,-500.0,9.999e-05,2]
[348987144,1736917841136,-291.8,9.999e-05,2]
[348987145,1736917841147,-500.0,9.999e-05,2]
[348987146,1736917841157,-500.0,9.999e-05,2]
[348987147,1736917841168,-500.0,9.999e-05,2]
[348987148,1736917841178,-500.0,9.999e-05,2]
[348987149,1736917841188,-500.0,9.999e-05,2]
[348987150,1736917841197,-636.46,9.999e-05,2]
[348987151,1736917841206,-208.96319956,9.999e-05,2]
[348987152,1736917841214,-500.0,9.999e-05,2]
[348987153,1736917841224,-500.0,9.999e-05,2]
[348987154,1736917841233,-500.0,9.999e-05,2]
[348987155,1736917841245,-321.07,9.999e-05,2]
[348987156,1736917841254,-6435.98153335,0.0001,2]
[348987157,1736917841274,-475.31499995,0.0001,2]
[348987158,1736917841287,-405.65,0.0001,2]
[348987159,1736917841300,-1404.82108519,0.0001,2]
[348987160,1736917841312,-335.0299999,0.0001,2]
[348987161,1736917841324,-333.9150005,0.0001,2]
[348987162,1736917841335,-399.433,0.0001,2]
[348987163,1736917841346,-302.951001,0.0001,2]
[348987164,1736917841365,-247913.35449578,0.0001,2]
[348987165,1736917843029,-500.0,9.999e-05,2]
[348987166,1736917843039,-590.98,9.999e-05,2]
[348987167,1736917843049,-530703.64001123,0.0001,2]
[348987168,1736917843061,-419.1175858,0.0001,2]
[348987169,1736917843073,-992.64931873,0.0001,2]
[348987170,1736917843086,-1104.77514956,0.0001,2]
[348987171,1736917843098,-4855.5,0.0001,2]
[348987172,1736917843115,-1247.33195353,0.0001,2]
[348987173,1736917843126,-1845.66805756,0.0001,2]
[348987174,1736917843138,-1192.20706,0.0001,2]
[348987175,1736917843154,-365.7149734,0.0001,2]
[348987176,1736917843170,-49260.0,0.0001,2]
[348987177,1736917843223,-832.05052796,0.0001,2]
[348987178,1736917843278,-682.36978236,0.0001,2]
[348987179,1736917843289,-1252.8464019,0.0001,2]
[348987180,1736917843301,-50972.8744749,0.0001,2]
[348987181,1736917843312,-6397.3587318,0.0001,2]
[348987182,1736917843323,-4836.0,0.0001,2]
[348987183,1736917843334,-1213.55115148,0.0001,2]
[348987184,1736917843346,-1273.949995,0.0001,2]
[348987185,1736917843358,-9018.59284828,0.0001,2]
[348987186,1736917843371,-470.24505832,0.0001,2]
[348987187,1736917843383,-30579.78,0.0001,2]
[348987188,1736917846034,-500.0,9.999e-05,2]
[348987189,1736917846044,-277133.68616513,0.0001,2]
[348987190,1736917846054,-5423.20356278,0.0001,2]
[348987191,1736917846065,-239.1838277,0.0001,2]
[348987192,1736917846075,-170.75392109,0.0001,2]
[348987193,1736917846086,-3000.0,0.0001,2]
[348987194,1736917846095,-1200.0,0.0001,3]
[348987195,1736917846106,-201.26408194,0.0001,2]
[348987196,1736917846117,-156.46,0.00010137,2]
[348987197,1736917846128,-703.06,0.00010137,2]
[348987198,1736917846139,-500.0,0.00010273,2]
[348987199,1736917846151,-500.0,0.00010273,2]
[348987200,1736917846160,-337.25,0.00010273,2]
[348987201,1736917846170,-333.73,0.00010273,2]
[348987202,1736917846178,-187.06,0.00010273,2]
[348987203,1736917846188,-500.0,0.00010273,2]
[348987204,1736917846197,-500.0,0.00010273,2]
[348987205,1736917846206,-500.0,0.00010273,2]
[348987206,1736917846215,-500.0,0.00010273,2]
[348987207,1736917846225,-295.55,0.00010273,2]
[348987208,1736917846234,-250.48,0.00010273,2]
[348987209,1736917846244,-500.0,0.00010273,2]
[348987210,1736917846253,-576.30188617,0.00010273,2]
[348987211,1736917846262,-500.0,0.00010273,2]
[348987212,1736917846273,-481.58,0.00010273,2]
[348987213,1736917846283,-500.0,0.00010273,2]
[348987214,1736917846293,-500.0,0.00010273,2]
[348987215,1736917846303,-500.0,0.00010273,2]
[348987216,1736917846314,-883.61,0.00010273,2]
[348987217,1736917846323,-500.0,0.00010273,2]
[348987218,1736917846334,-500.0,0.00010273,2]
[348987219,1736917846343,-500.0,0.00010273,2]
[348987220,1736917846353,-500.0,0.00010273,2]
[348987221,1736917846366,-368.08,0.00010273,2]
[348987222,1736917846376,-500.0,0.00010273,2]
[348987223,1736917846387,-500.0,0.00010273,2]
[348987224,1736917846396,-500.0,0.00010273,2]
[348987225,1736917846406,-500.0,0.00010273,2]
[348987226,1736917846415,-200.49,0.00010273,2]
[348987227,1736917846425,-500.0,0.00010273,2]
[348987228,1736917846435,-326.01134797,0.00010273,2]
[348987229,1736917846444,-507.89,0.00010273,2]
[348987230,1736917846453,-500.0,0.00010273,2]
[348987231,1736917846462,-513.87972522,0.00010273,2]
[348987232,1736917846471,-510.48658295,0.00010273,2]
[348987233,1736917846482,-500.0,0.00010273,2]
[348987234,1736917846491,-500.0,0.00010273,2]
[348987235,1736917846503,-500.0,0.00010273,2]
[348987236,1736917846513,-500.0,0.00010273,2]
[348987237,1736917846522,-500.0,0.00010273,2]
[348987238,1736917846531,-500.0,0.00010273,2]
[348987239,1736917846540,-500.0,0.00010273,2]
[348987240,1736917846549,-500.0,0.00010273,2]
[348987241,1736917846558,-500.0,0.00010273,2]
[348987242,1736917846567,-500.0,0.00010273,2]
[348987243,1736917846576,-376.41,0.00010273,2]
[348987244,1736917846585,-500.0,0.00010273,2]
[348987245,1736917846594,-500.0,0.00010273,2]
[348987246,1736917846604,-281.17,0.00010273,2]
[348987247,1736917846613,-401.24,0.00010273,2]
[348987248,1736917846624,-617.58,0.00010273,2]
[348987249,1736917846634,-500.0,0.00010273,2]
[348987250,1736917846643,-500.0,0.00010273,2]
[348987251,1736917846652,-531.95,0.00010273,2]
[348987252,1736917846662,-375.23,0.00010273,2]
[348987253,1736917846671,-500.0,0.00010273,2]
[348987254,1736917846681,-500.0,0.00010273,2]
[348987255,1736917846690,-500.0,0.00010273,2]
[348987256,1736917846699,-500.0,0.00010273,2]
[348987257,1736917846709,-326.20741663,0.00010273,2]
[348987258,1736917846719,-500.0,0.00010273,2]
[348987259,1736917846729,-500.0,0.00010273,2]
[348987260,1736917846739,-500.0,0.00010273,2]
[348987261,1736917846749,-158.14,0.00010298,2]
[348987262,1736917846759,-514.65632957,0.00010451,2]
[348987263,1736917846768,-500.0,0.00010547,2]
[348987264,1736917846778,-490.79812725,0.00010547,2]
[348987265,1736917846787,-150.94,0.00010547,2]
[348987266,1736917846796,-379.87,0.00010547,2]
[348987267,1736917846806,-584.44,0.00010547,2]
[348987268,1736917846815,-500.0,0.00010547,2]
[348987269,1736917846824,-500.0,0.00010547,2]
[348987270,1736917846833,-883.61,0.00010547,2]
[348987271,1736917846843,-223.11,0.00010547,2]
[348987272,1736917846852,-205.44,0.00010547,2]
[348987273,1736917846862,-500.0,0.00010547,2]
[348987274,1736917846872,-500.0,0.00010547,2]
[348987275,1736917846882,-355.03,0.00010547,2]
[348987276,1736917846892,-500.0,0.00010547,2]
[348987277,1736917846902,-500.0,0.00010547,2]
[348987278,1736917846912,-500.0,0.00010547,2]
[348987279,1736917846921,-500.0,0.00010547,2]
[348987280,1736917846931,-284.33,0.00010547,2]
[348987281,1736917846941,-500.0,0.00010547,2]
[348987282,1736917846950,-500.0,0.00010547,2]
[348987283,1736917846959,-500.0,0.00010547,2]
[348987284,1736917846968,-500.0,0.00010547,2]
[348987285,1736917846978,-534.21,0.00010547,2]
[348987286,1736917846987,-500.0,0.00010547,2]
[348987287,1736917846996,-500.0,0.00010547,2]
[348987288,1736917847006,-592.56,0.00010547,2]
[348987289,1736917847015,-248.05,0.00010547,2]
[348987290,1736917847023,-500.0,0.00010547,2]
[348987291,1736917847032,-593.38,0.00010547,2]
[348987292,1736917847042,-500.0,0.00010547,2]
[348987293,1736917847201,-585.52,0.00010547,2]
[348987294,1736917847213,-500.0,0.00010547,2]
[348987295,1736917847223,-228.72059372,0.00010547,2]
[348987296,1736917847233,-504.53,0.00010547,2]
[348987297,1736917847243,-500.0,0.00010821,2]
[348987298,1736917847252,-500.0,0.00010821,2]
[348987299,1736917847261,-506.08,0.00010821,2]
[348987300,1736917847270,-883.61,0.00010821,2]
[348987301,1736917847279,-499.68,0.00010821,2]
[348987302,1736917847288,-236.57,0.00010821,2]
[348987303,1736917847297,-500.0,0.00010821,2]
[348987304,1736917847307,-500.0,0.00010821,2]
[348987305,1736917847315,-500.0,0.00010821,2]
[348987306,1736917847325,-500.0,0.00010821,2]
[348987307,1736917847334,-500.0,0.00010821,2]
[348987308,1736917847343,-500.0,0.00010821,2]
[348987309,1736917847352,-500.0,0.00010821,2]
[348987310,1736917847362,-253.04,0.00010821,2]
[348987311,1736917847371,-246.27,0.00010821,2]
[348987312,1736917847380,-500.0,0.00010821,2]
[348987313,1736917847389,-500.0,0.00010821,2]
[348987314,1736917847399,-250.6,0.00010821,2]
[348987315,1736917847409,-500.0,0.00010821,2]
[348987316,1736917847418,-999.0,0.00010958,2]
[348987317,1736917847427,-1918.55662627,0.00010999,2]
[348987318,1736917847437,-550.0,0.00011,2]
[348987319,1736917847446,-500.0,0.00011095,2]
[348987320,1736917847455,-500.0,0.00011095,2]
[348987321,1736917847464,-883.61,0.00011095,2]
[348987322,1736917847473,-500.0,0.00011095,2]
[348987323,1736917847483,-500.0,0.00011095,2]
[348987324,1736917847492,-500.0,0.00011095,2]
[348987325,1736917847504,-500.0,0.00011095,2]
[348987326,1736917847513,-500.0,0.00011095,2]
[348987327,1736917847522,-500.0,0.00011095,2]
[348987328,1736917847531,-500.0,0.00011095,2]
[348987329,1736917847541,-500.0,0.00011095,2]
[348987330,1736917847550,-500.0,0.00011095,2]
[348987331,1736917847559,-285.16,0.00011095,2]
[348987332,1736917847568,-681.21893657,0.00011099,2]
[348987333,1736917847577,-681.21893648,0.00011099,2]
[348987334,1736917847586,-243.06,0.00011221,2]
[348987335,1736917847595,-250.0,0.00011308,2]
[348987336,1736917847604,-500.0,0.00011369,2]
[348987337,1736917847614,-500.0,0.00011369,2]
[348987338,1736917847623,-883.61,0.00011369,2]
[348987339,1736917847632,-500.0,0.00011369,2]
[348987340,1736917847641,-560.31,0.00011369,2]
[348987341,1736917847650,-500.0,0.00011369,2]
[348987342,1736917847660,-500.0,0.00011369,2]
[348987343,1736917847669,-497.81,0.00011369,2]
[348987344,1736917847678,-500.0,0.00011369,2]
[348987345,1736917847687,-500.0,0.00011369,2]
[348987346,1736917847696,-500.0,0.00011369,2]
[348987347,1736917847706,-200.0,0.00011381,2]
[348987348,1736917847715,-211.89,0.00011382,2]
[348987349,1736917847726,-201.26408194,0.00011614,2]
[348987350,1736917847735,-500.0,0.00011643,2]
[348987351,1736917847744,-500.0,0.00011643,2]
[348987352,1736917847753,-883.61,0.00011643,2]
[348987353,1736917847763,-423.63525732,0.00011643,2]
[348987354,1736917847911,-76.36474268,0.00011643,2]
[348987355,1736917847921,-409.1279527,0.00011643,2]
[348987356,1736917847932,-90.8720473,0.00011643,2]
[348987357,1736917847941,-500.0,0.00011643,2]
[348987358,1736917847951,-500.0,0.00011643,2]
[348987359,1736917847961,-500.0,0.00011643,2]
[348987360,1736917847971,-500.0,0.00011643,2]
[348987361,1736917847981,-1016.03475817,0.00011781,2]
[348987362,1736917847996,-4805.96524183,0.00011781,2]
[348987363,1736917848005,-6875.56321279,0.00011798,2]
[348987364,1736917848017,-268.89433491,0.00011798,2]
[348987365,1736917848029,-16755.5424523,0.00011798,2]
[348987366,1736917848038,-681.21893648,0.00011855,2]
[348987367,1736917848047,-170.75392106,0.000119,2]
[348987368,1736917848058,-500.0,0.00011917,2]
[348987369,1736917848067,-500.0,0.00011917,2]
[348987370,1736917848077,-883.61,0.00011917,2]
[348987371,1736917848087,-500.0,0.00011917,2]
[348987372,1736917848096,-500.0,0.00011917,2]
[348987373,1736917848106,-499.68,0.00011917,2]
[348987374,1736917848116,-500.0,0.00011917,2]
[348987375,1736917848126,-500.0,0.00011917,2]
[348987376,1736917848136,-552.32,0.00011917,2]
[348987377,1736917848146,-177.96,0.00011937,2]
[348987378,1736917848155,-626.31,0.00011937,2]
[348987379,1736917848165,-3924.78,0.00011984,2]
[348987380,1736917848174,-187.58,0.00012055,2]
[348987381,1736917848184,-500.0,0.00012191,2]
[348987382,1736917848193,-500.0,0.00012191,2]
[348987383,1736917848203,-883.61,0.00012191,2]
[348987384,1736917848213,-500.0,0.00012191,2]
[348987385,1736917848222,-283.78,0.00012191,2]
[348987386,1736917848234,-500.0,0.00012191,2]
[348987387,1736917848244,-394.32797537,0.00012191,2]
[348987388,1736917848253,-943.89,0.00012216,2]
[348987389,1736917848263,-250.0,0.00012216,2]
[348987390,1736917848272,-185.49,0.00012216,2]
[348987391,1736917848282,-1346.05,0.00012216,2]
[348987392,1736917848291,-438.32,0.00012216,2]
[348987393,1736917848300,-426.09,0.00012216,2]
[348987394,1736917848310,-1852.42,0.00012216,2]
[348987395,1736917848319,-164.68,0.00012329,2]
[348987396,1736917848328,-166.66,0.00012348,2]
[348987397,1736917848338,-500.0,0.00012465,2]
[348987398,1736917848348,-500.0,0.00012465,2]
[348987399,1736917848358,-883.61,0.00012465,2]
[348987400,1736917848368,-500.0,0.00012465,2]
[348987401,1736917848377,-500.0,0.00012465,2]
[348987402,1736917848387,-175.29,0.00012536,2]
[348987403,1736917848398,-200.0,0.0001255,2]
[348987404,1736917848407,-250.0,0.00012566,2]
[348987405,1736917848417,-168.21,0.00012708,2]
[348987406,1736917848427,-500.0,0.00012739,2]
[348987407,1736917848436,-500.0,0.00012739,2]
[348987408,1736917848445,-883.61,0.00012739,2]
[348987409,1736917848455,-500.0,0.00012739,2]
[348987410,1736917848465,-189.37,0.00012739,2]
[348987411,1736917848475,-150.66,0.000128,2]
[348987412,1736917848485,-150.66,0.000128,2]
[348987413,1736917848495,-150.66,0.000128,2]
[348987414,1736917848508,-150.66,0.000128,2]
[348987415,1736917848517,-150.66,0.000128,2]
[348987416,1736917848527,-211.89,0.00012805,2]
[348987417,1736917848537,-681.21893648,0.00012833,2]
[348987418,1736917848546,-309.77,0.00012837,2]
[348987419,1736917848555,-600.0,0.00013,2]
[348987420,1736917848564,-500.0,0.00013013,2]
[348987421,1736917848574,-500.0,0.00013013,2]
[348987422,1736917848583,-883.61,0.00013013,2]
[348987423,1736917848593,-500.0,0.00013013,2]
[348987424,1736917848603,-999.0,0.0001315,4]
[348987425,1736917848613,-175.82265837,0.00013287,2]
[348987426,1736917848622,-500.0,0.00013287,2]
[348987427,1736917848631,-883.61,0.00013287,2]
[348987428,1736917848641,-500.0,0.00013287,2]
[348987429,1736917848650,-201.26408194,0.00013329,2]
[348987430,1736917848660,-5556.0,0.000134,5]
[348987431,1736917848670,-626.31,0.00013429,2]
[348987432,1736917848679,-442.67293892,0.00013561,2]
[348987433,1736917848688,-883.61,0.00013561,2]
[348987434,1736917848699,-403.53209908,0.00013561,2]
[348987435,1736917848713,-96.46790092,0.00013561,2]
[348987436,1736917848723,-158.14,0.00013607,2]
[348987437,1736917848734,-500.0,0.00013698,2]
[348987438,1736917848745,-200.0,0.00013699,2]
[348987439,1736917848756,-500.0,0.00013699,2]
[348987440,1736917848766,-681.21893648,0.00013811,2]
[348987441,1736917848776,-883.61,0.00013835,2]
[348987442,1736917848786,-500.0,0.00013835,2]
[348987443,1736917848796,-170.75392106,0.000139,2]
[348987444,1736917848806,-175.29,0.00014103,2]
[348987445,1736917848816,-883.61,0.00014109,2]
[348987446,1736917848826,-500.0,0.00014109,2]
[348987447,1736917848836,-211.89,0.00014227,2]
[348987448,1736917848846,-883.61,0.00014383,2]
[348987449,1736917848855,-451.88291943,0.00014383,2]
[348987450,1736917848868,-883.61,0.00014657,2]
[348987451,1736917848878,-681.21893648,0.00014788,2]
[348987452,1736917848888,-626.31,0.00014921,2]
[348987453,1736917848897,-883.61,0.00014931,2]
[348987454,1736917848906,-452.62067415,0.00014962,2]
[348987455,1736917848916,-452.62067415,0.00014968,2]
[348987456,1736917848925,-452.62067415,0.00014968,2]
[348987457,1736917848935,-452.62067415,0.0001497,2]
[348987458,1736917848945,-200.0,0.00014975,2]
[348987459,1736917848955,-200.0,0.0001498,2]
[348987460,1736917848967,-452.62067415,0.00014991,2]
[348987461,1736917848978,-452.62067415,0.00014995,2]
[348987462,1736917848988,-8329.0,0.00015,2]
[348987463,1736917848998,-650.0,0.00015,2]
[348987464,1736917849007,-864.28697474,0.00015,6]
[348987465,1736917849016,-3000.0,0.00015,2]
[348987466,1736917849026,-150.0,0.00015,20]
[348987467,1736917849035,-201.26408194,0.00015043,2]
[348987468,1736917849045,-500.0,0.00015068,2]
[348987469,1736917849055,-900.0,0.00015068,2]
[348987470,1736917849065,-300.0,0.00015068,2]
[348987471,1736917849075,-883.61,0.00015205,2]
[348987472,1736917849084,-299.99,0.0001531,2]
[348987473,1736917849095,-1308.6944522,0.0001531,2]
[348987474,1736917849107,-306.16714406,0.0001531,2]
[348987475,1736917849139,-194.24,9.999e-05,2]
[348987476,1736917849150,-307.531067,0.0001531,2]
[348987477,1736917849162,-2254.80758069,0.0001531,2]
[348987478,1736917849173,-246.11975605,0.0001531,2]
[348987479,1736917849183,-830.12969053,0.00015342,6]
[348987480,1736917849195,-168.87030947,0.00015342,6]
[348987481,1736917849205,-238.95238681,0.00015479,2]
[348987482,1736917849221,-644.65761319,0.00015479,2]
[348987483,1736917849232,-211.89,0.0001565,2]
[348987484,1736917849242,-175.29,0.0001567,2]
[348987485,1736917849252,-883.61,0.00015753,2]
[348987486,1736917849262,-681.21893648,0.00015766,2]